fUST/lending_fUST_20260128
["ID","MTS","AMOUNT","RATE_DAILY","PERIOD"]
[403771478,1769531441338,-1500.0,0.00014368,2]
[403771479,1769531441347,-951.8102882,0.00014368,2]
[403771480,1769531441357,-500.0,0.00014368,2]
[403771481,1769531441366,-1500.0,0.00014368,2]
[403771482,1769531441375,-1500.0,0.00014368,2]
[403771483,1769531441386,-1500.0,0.00014368,2]
[403771484,1769531441395,-587.0,0.00014491,2]
[403771485,1769531441405,-31110.0,0.00014499,2]
[403771486,1769531441414,-2773.56790519,0.00014499,2]
[403771487,1769531441424,-574.12855637,0.00014499,2]
[403771488,1769531441433,-211.14885152,0.00014574,2]
[403771489,1769531441443,-900.0,0.00014768,2]
[403771490,1769531441452,-500.0,0.00014795,2]
[403771491,1769531441462,-500.0,0.00014795,2]
[403771492,1769531441471,-1500.0,0.00014795,2]
[403771493,1769531441480,-1500.0,0.00014795,2]
[403771494,1769531441490,-1500.0,0.00014795,2]
[403771495,1769531441499,-1500.0,0.00014795,2]
[403771496,1769531441509,-1500.0,0.00014795,2]
[403771497,1769531441518,-1500.0,0.00014795,2]
[403771498,1769531441531,-621.246246,0.00014795,2]
[403771499,1769531441541,-621.246246,0.00014795,2]
[403771500,1769531441550,-621.246246,0.00014795,2]
[403771501,1769531441559,-621.246246,0.00014795,2]
[403771502,1769531441568,-151.0,0.00014795,2]
[403771503,1769531441578,-151.0,0.00014795,2]
[403771504,1769531441588,-768.440107,0.00014795,2]
[403771505,1769531441598,-768.440107,0.00014795,2]
[403771506,1769531441608,-768.440107,0.00014795,2]
[403771507,1769531441617,-768.440101,0.00014795,2]
[403771508,1769531441627,-281.30708185,0.00014901,2]
[403771509,1769531441636,-151.0,0.00014916,2]
[403771510,1769531441645,-500.0,0.00014916,2]
[403771511,1769531441655,-500.0,0.00014916,2]
[403771512,1769531441664,-500.0,0.00014916,2]
[403771513,1769531441673,-500.0,0.00014916,2]
[403771514,1769531441684,-1000.0,0.00014916,2]
[403771515,1769531441694,-1000.0,0.00014916,2]
[403771516,1769531441703,-1000.0,0.00014916,2]
[403771517,1769531441712,-1000.0,0.00014916,2]
[403771518,1769531441722,-14866.88263483,0.00015,2]
[403771519,1769531441731,-5000.0,0.00015,2]
[403771520,1769531441741,-1837.9324731,0.00015,2]
[403771521,1769531441752,-1374.32636914,0.00015,2]
[403771522,1769531441762,-32261.07,0.00015047,2]
[403771523,1769531441772,-2876.18991768,0.00015047,2]
[403771524,1769531441783,-595.37131296,0.00015047,2]
[403771525,1769531441794,-190.842461,0.00015068,2]
[403771526,1769531441804,-274.46400997,0.0001515,20]
[403771527,1769531441814,-864.0,0.00015184,2]
[403771528,1769531441823,-1200.0,0.00015316,2]
[403771529,1769531441834,-2194.25,0.00015342,2]
[403771530,1769531441844,-1222.66874227,0.00015342,2]
[403771531,1769531441853,-2000.0,0.00015342,2]
[403771532,1769531441863,-500.0,0.00015342,2]
[403771533,1769531441872,-1500.0,0.00015342,2]
[403771534,1769531441882,-386.16038037,0.00015342,2]
[403771535,1769531441893,-500.0,0.00015342,2]
[403771536,1769531441902,-211.14885152,0.00015364,2]
[403771537,1769531441912,-200.0,0.00015399,2]
[403771538,1769531441922,-98430.11541082,0.000154,2]
[403771539,1769531441949,-5394.03012715,0.000154,2]
[403771540,1769531441960,-59665.08414457,0.000154,2]
[403771541,1769531441975,-638461.02755915,0.000154,2]
[403771542,1769531441984,-33454.72959,0.00015595,2]
[403771543,1769531442003,-2982.60894464,0.00015595,2]
[403771544,1769531442015,-617.40005154,0.00015595,2]
[403771545,1769531442024,-10361.444235,0.00015608,2]
[403771546,1769531442035,-151.0,0.000157,2]
[403771547,1769531442045,-1200.0,0.00015864,2]
[403771548,1769531442055,-2000.0,0.0001589,2]
[403771549,1769531442065,-823.0,0.00015907,2]
[403771550,1769531442075,-504.35329126,0.00015949,2]
[403771551,1769531442085,-30187.77423044,0.00016143,2]
[403771552,1769531442096,-3092.96547559,0.00016143,2]
[403771553,1769531442106,-640.24385345,0.00016143,2]
[403771554,1769531442116,-151.0,0.00016224,2]
[403771555,1769531442126,-151.0,0.00016224,2]
[403771556,1769531442136,-151.0,0.00016224,2]
[403771557,1769531442147,-151.0,0.00016224,2]
[403771558,1769531442157,-151.0,0.00016224,2]
[403771559,1769531442167,-151.0,0.00016224,2]
[403771560,1769531442177,-151.0,0.00016224,2]
[403771561,1769531442187,-151.0,0.00016224,2]
[403771562,1769531442197,-151.0,0.00016224,2]
[403771563,1769531442207,-151.0,0.00016224,2]
[403771564,1769531442217,-151.0,0.00016224,2]
[403771565,1769531442226,-151.0,0.00016224,2]
[403771566,1769531442236,-151.0,0.00016224,2]
[403771567,1769531442246,-151.0,0.00016224,2]
[403771568,1769531442256,-164.81135061,0.00016224,2]
[403771569,1769531442266,-151.0,0.000163,2]
[403771570,1769531442276,-200.0,0.00016438,2]
[403771571,1769531442286,-151.0,0.00016438,2]
[403771572,1769531442296,-151.0,0.00016438,2]
[403771573,1769531442306,-151.0,0.00016438,2]
[403771574,1769531442316,-151.782866,0.00016438,2]
[403771575,1769531442326,-789.98661277,0.00016691,2]
[403771576,1769531442336,-1000.0,0.00016703,2]
[403771577,1769531442346,-1041.66666667,0.00016897,2]
[403771578,1769531442356,-151.0,0.000169,2]
[403771579,1769531442366,-10361.444235,0.00017099,2]
[403771580,1769531442376,-151.0,0.000174,2]
[403771581,1769531442387,-151.0,0.000174,2]
[403771582,1769531442397,-1152.0,0.00017462,2]
[403771583,1769531442408,-9164.16025155,0.000175,3]
[403771584,1769531442419,-210.22295055,0.000176,2]
[403771585,1769531442430,-160.0,0.00017887,3]
[403771586,1769531442440,-200.945528,0.00017887,7]
[403771587,1769531442450,-571.10593275,0.00017949,2]
[403771588,1769531442460,-88770.61021599,0.00018,2]
[403771590,1769531442639,-201.93286099,0.00013951,2]
[403771591,1769531442648,-209.40437684,0.00013951,2]
[403771592,1769531442659,-1314.04096217,0.00018,2]
[403771611,1769531446025,-217.15233878,0.00013951,2]
[403771613,1769531446037,-201.93286099,0.00013951,2]
[403771615,1769531446047,-225.18697532,0.00013951,2]
[403771617,1769531446057,-233.51889341,0.00013951,2]
[403771619,1769531446067,-242.15909246,0.00013951,2]
[403771621,1769531446077,-251.11897888,0.00013951,2]
[403771622,1769531446087,-260.4103811,0.00013951,2]
[403771623,1769531446097,-270.0455652,0.00013951,2]
[403771624,1769531446108,-169.85223486,0.0001532,2]
[403771625,1769531446118,-16746.75098216,0.00018,2]
[403771631,1769531446323,-755.78089031,0.00018,2]
[403771637,1769531446471,-2674.60743027,0.00018,2]
[403771639,1769531446483,-39840.40121136,0.00018,2]
[403771641,1769531446495,-9377.06113134,0.00018,2]
[403771642,1769531446506,-508.77317047,0.00018,2]
[403771643,1769531446518,-550.68,0.00018,2]
[403771647,1769531467221,6177.31258494,0.00035004,120]
[403771649,1769531490883,200.0,0.00024787,120]
[403771650,1769531550835,200.0,0.00027847,120]
[403771653,1769531582619,300.0,0.00011925,2]
[403771654,1769531642683,300.0,0.00011925,2]
[403771655,1769531653506,5000.0,0.00011926,2]
[403771656,1769531671492,200.0,0.00026207,120]
[403771657,1769531676354,4400.01,0.00011926,2]
[403771658,1769531676380,599.99,0.00011926,2]
[403771659,1769531681162,207.89267664,0.00011826,2]
[403771660,1769531699866,5000.0,0.00011926,2]
[403771661,1769531702685,300.0,0.00011925,2]
[403771662,1769531706275,1200.0,0.00011925,2]
[403771667,1769531723619,2692.12732336,0.00011926,2]
[403771668,1769531723656,2307.87267664,0.00011926,2]
[403771682,1769531746008,5000.0,0.00011926,2]
[403771685,1769531752752,500.0,0.00034954,120]
[403771686,1769531753001,500.0,0.00034954,120]
[403771687,1769531753245,520.58178683,0.00034954,120]
[403771690,1769531758791,151.0,0.000117,2]
[403771692,1769531759101,151.0,0.000113,2]
[403771693,1769531759399,151.0,0.00011,2]
[403771698,1769531763281,300.0,0.00011925,2]
[403771700,1769531765644,404.65,0.000119,2]
[403771703,1769531769005,1534.48732336,0.00011926,2]
[403771704,1769531769033,3465.51267664,0.00011926,2]
[403771713,1769531790790,200.0,0.00028611,120]
[403771714,1769531791265,5000.0,0.00011926,2]
[403771725,1769531814819,1534.49732336,0.00011926,2]
[403771726,1769531814841,3465.50267664,0.00011926,2]
[403771730,1769531822727,300.0,0.00011925,2]
[403771735,1769531837895,5000.0,0.00011926,2]
[403771743,1769531851049,200.0,0.00022251,120]
[403771748,1769531861147,1234.50732336,0.00011926,2]
[403771749,1769531861172,3765.49267664,0.00011926,2]
[403771759,1769531883687,300.0,0.00011925,2]
[403771761,1769531885107,5000.0,0.00011926,2]
[403771767,1769531900950,-2318.5487514,0.00011806,2]
[403771770,1769531908557,5000.0,0.00011806,2]
[403771781,1769531925550,-2681.4612486,0.00011806,2]
[403771842,1769532011530,282.0,0.00011502,2]
[403771850,1769532030773,200.0,0.00027087,120]
[403771900,1769532109142,-310.247,0.00011687,2]
[403771952,1769532210897,200.0,0.00022398,120]
[403771958,1769532270798,200.0,0.00025416,120]
[403771959,1769532323894,-1331.70581354,0.00011741,2]
[403771963,1769532390782,200.0,0.00022288,120]
[403771964,1769532447097,-411.41700516,0.0001188,2]
[403771965,1769532447117,-151.0,0.000119,2]
[403771966,1769532447138,-151.0,0.000119,2]
[403771967,1769532447158,-437.33885117,0.000119,2]
[403771968,1769532447178,-129.66944329,0.00011925,2]
[403771973,1769532510883,200.0,0.00023312,120]
[403771975,1769532570755,200.0,0.00030134,120]
[403771976,1769532603114,93000.0,0.00028767,120]
[403771977,1769532613304,800.0,0.00035035,120]
[403771981,1769532632240,-300.0,0.00011924,2]
[403771982,1769532632250,-139.64,0.00011924,2]
[403771983,1769532632260,-288.63,0.00011924,2]
[403771984,1769532632271,-159.73,0.00011924,2]
[403771985,1769532632280,-1200.0,0.00011924,2]
[403771986,1769532632289,-403.18866506,0.00011924,2]
[403771987,1769532632298,-500.0,0.00011925,2]
[403771988,1769532632308,-500.0,0.00011925,2]
[403771989,1769532632317,-500.0,0.00011925,2]
[403771990,1769532632326,-500.0,0.00011925,2]
[403771991,1769532632335,-500.0,0.00011925,2]
[403771992,1769532632343,-500.0,0.00011925,2]
[403771993,1769532632352,-151.0,0.00012,2]
[403771994,1769532632362,-151.0,0.000121,2]
[403771995,1769532632370,-151.0,0.000121,2]
[403771996,1769532632379,-300.0,0.00012264,2]
[403771997,1769532632387,-300.0,0.00012264,2]
[403771998,1769532632396,-300.0,0.00012264,2]
[403771999,1769532632406,-300.0,0.00012264,2]
[403772000,1769532632415,-300.0,0.00012264,2]
[403772001,1769532632424,-300.0,0.00012264,2]
[403772002,1769532632433,-300.0,0.00012264,2]
[403772003,1769532632442,-300.0,0.00012264,2]
[403772004,1769532632451,-300.0,0.00012264,2]
[403772005,1769532632460,-300.0,0.00012264,2]
[403772006,1769532632469,-300.0,0.00012264,2]
[403772007,1769532632478,-300.0,0.00012264,2]
[403772008,1769532632487,-300.0,0.00012264,2]
[403772009,1769532632497,-300.0,0.00012264,2]
[403772010,1769532632507,-300.0,0.00012264,2]
[403772011,1769532632516,-600.0,0.00012264,2]
[403772012,1769532632524,-151.0,0.000123,2]
[403772013,1769532632533,-151.0,0.000123,2]
[403772014,1769532632543,-437.33885115,0.00012325,2]
[403772015,1769532632551,-2195.07963787,0.00012396,2]
[403772016,1769532632561,-151.0,0.000124,2]
[403772017,1769532632571,-151.0,0.000125,2]
[403772018,1769532632580,-151.0,0.000125,2]
[403772019,1769532632589,-151.0,0.000127,2]
[403772020,1769532632598,-151.0,0.000127,2]
[403772022,1769532632607,-151.0,0.000127,2]
[403772024,1769532632616,-150.0,0.00012726,2]
[403772026,1769532632626,-150.0,0.00012726,2]
[403772028,1769532632636,-437.33885115,0.0001275,2]
[403772030,1769532632645,-500.0,0.00012843,2]
[403772031,1769532632654,-150.0,0.00012843,2]
[403772033,1769532632663,-150.0,0.00012843,2]
[403772035,1769532632672,-151.0,0.000129,2]
[403772037,1769532632681,-151.0,0.000129,2]
[403772039,1769532632691,-9172.82870599,0.000129,2]
[403772041,1769532632701,-500.0,0.000129,2]
[403772043,1769532632710,-500.0,0.0001298,2]
[403772045,1769532632720,-150.0,0.0001298,2]
[403772047,1769532632729,-150.0,0.00012998,2]
[403772048,1769532632738,-150.0,0.00012998,2]
[403772050,1769532632749,-150.0,0.00012998,2]
[403772052,1769532632758,-500.0,0.00012998,2]
[403772054,1769532632768,-150.0,0.00012998,2]
[403772056,1769532632778,-500.0,0.00012998,2]
[403772058,1769532632787,-150.0,0.00012998,2]
[403772060,1769532632796,-150.0,0.00012998,2]
[403772062,1769532632806,-2736.0794393,0.00013,2]
[403772093,1769532633101,562.0,0.00035035,120]
[403772326,1769532638192,-500.0,0.0001298,2]
[403772328,1769532638201,-837.66985282,0.00013,2]
[403772333,1769532638246,-3583.19021041,0.00013,2]
[403772335,1769532638256,-420.0,0.00013091,2]
[403772338,1769532638266,-151.0,0.000131,2]
[403772339,1769532638276,-151.0,0.000131,2]
[403772342,1769532638286,-151.0,0.000131,2]
[403772343,1769532638295,-1348.0,0.00013116,2]
[403772346,1769532638306,-500.0,0.00013117,2]
[403772348,1769532638315,-200.0,0.00013117,2]
[403772350,1769532638324,-150.0,0.00013135,2]
[403772352,1769532638334,-150.0,0.00013135,2]
[403772353,1769532638343,-150.0,0.00013135,2]
[403772356,1769532638352,-500.0,0.00013135,2]
[403772357,1769532638361,-150.0,0.00013135,2]
[403772360,1769532638371,-500.0,0.00013135,2]
[403772362,1769532638381,-150.0,0.00013135,2]
[403772364,1769532638390,-150.0,0.00013135,2]
[403772366,1769532638399,-437.33885115,0.00013174,2]
[403772368,1769532638408,-229.25167325,0.00013245,2]
[403772369,1769532638418,-500.0,0.00013254,2]
[403772372,1769532638428,-500.0,0.00013254,2]
[403772374,1769532638437,-181.492,0.00013271,2]
[403772376,1769532638446,-500.0,0.00013272,2]
[403772378,1769532638456,-500.0,0.00013272,2]
[403772380,1769532638466,-500.0,0.00013272,2]
[403772382,1769532638475,-232.79191062,0.00013272,2]
[403772383,1769532638484,-500.0,0.00013272,2]
[403772386,1769532638495,-500.0,0.00013272,2]
[403772387,1769532638503,-500.0,0.00013272,2]
[403772389,1769532638513,-370.36149431,0.00013272,2]
[403772391,1769532638522,-500.0,0.00013272,2]
[403772393,1769532638532,-500.0,0.00013272,2]
[403772395,1769532638541,-500.0,0.00013272,2]
[403772397,1769532638551,-500.0,0.00013272,2]
[403772399,1769532638560,-500.0,0.00013272,2]
[403772401,1769532638569,-500.0,0.00013272,2]
[403772403,1769532638579,-500.0,0.00013272,2]
[403772405,1769532638587,-500.0,0.00013272,2]
[403772407,1769532638596,-500.0,0.00013272,2]
[403772409,1769532638607,-500.0,0.00013272,2]
[403772411,1769532638617,-500.0,0.00013272,2]
[403772413,1769532638626,-500.0,0.00013272,2]
[403772415,1769532638636,-500.0,0.00013272,2]
[403772417,1769532638646,-500.0,0.00013272,2]
[403772419,1769532638655,-149.41602371,0.00013272,2]
[403772422,1769532638668,-350.58397629,0.00013272,2]
[403772424,1769532638678,-365.46500731,0.00013272,2]
[403772426,1769532638689,-134.53499269,0.00013272,2]
[403772428,1769532638699,-260.85291582,0.00013272,2]
[403772430,1769532638709,-500.0,0.00013272,2]
[403772432,1769532638719,-500.0,0.00013272,2]
[403772434,1769532638728,-500.0,0.00013272,2]
[403772436,1769532638738,-500.0,0.00013272,2]
[403772438,1769532638748,-445.01102773,0.00013272,2]
[403772440,1769532638757,-500.0,0.00013272,2]
[403772442,1769532638767,-500.0,0.00013272,2]
[403772444,1769532638776,-500.0,0.00013272,2]
[403772446,1769532638785,-500.0,0.00013272,2]
[403772448,1769532638795,-500.0,0.00013272,2]
[403772450,1769532638806,-312.51176713,0.00013272,2]
[403772452,1769532638818,-187.48823287,0.00013272,2]
[403772454,1769532638828,-500.0,0.00013272,2]
[403772456,1769532638837,-500.0,0.00013272,2]
[403772459,1769532638847,-500.0,0.00013272,2]
[403772461,1769532638856,-500.0,0.00013272,2]
[403772463,1769532638866,-500.0,0.00013272,2]
[403772464,1769532638876,-500.0,0.00013272,2]
[403772467,1769532638888,-500.0,0.00013272,2]
[403772468,1769532638898,-500.0,0.00013272,2]
[403772470,1769532638908,-500.0,0.00013272,2]
[403772473,1769532638918,-500.0,0.00013272,2]
[403772474,1769532638927,-150.0,0.00013272,2]
[403772476,1769532638936,-386.50377606,0.00013272,2]
[403772478,1769532638950,-150.0,0.00013272,2]
[403772480,1769532638962,-300.0,0.00013272,2]
[403772482,1769532638972,-200.0,0.00013272,2]
[403772484,1769532638981,-150.45045336,0.00013272,2]
[403772486,1769532638991,-500.23170738,0.00013273,2]
[403772488,1769532639000,-500.0,0.00013273,2]
[403772491,1769532639010,-500.0,0.00013273,2]
[403772492,1769532639020,-500.0,0.00013273,2]
[403772495,1769532639030,-500.0,0.00013273,2]
[403772497,1769532639039,-500.0,0.00013273,2]
[403772499,1769532639049,-500.0,0.00013273,2]
[403772500,1769532639058,-284.04326702,0.00013273,2]
[403772502,1769532639068,-500.0,0.00013273,2]
[403772504,1769532639078,-500.0,0.00013273,2]
[403772506,1769532639087,-500.0,0.00013273,2]
[403772508,1769532639096,-264.83719499,0.00013273,2]
[403772510,1769532639105,-500.0,0.00013273,2]
[403772512,1769532639115,-500.0,0.00013273,2]
[403772513,1769532639125,-500.0,0.00013273,2]
[403772515,1769532639134,-500.0,0.00013273,2]
[403772517,1769532639143,-500.0,0.00013273,2]
[403772518,1769532639153,-500.0,0.00013273,2]
[403772520,1769532639163,-500.0,0.00013273,2]
[403772522,1769532639173,-500.0,0.00013273,2]
[403772523,1769532639182,-500.0,0.00013273,2]
[403772525,1769532639191,-500.0,0.00013273,2]
[403772527,1769532639201,-500.0,0.00013273,2]
[403772528,1769532639210,-500.0,0.00013273,2]
[403772529,1769532639219,-500.0,0.00013273,2]
[403772530,1769532639229,-500.0,0.00013273,2]
[403772531,1769532639237,-158.17292823,0.00013273,2]
[403772532,1769532639246,-500.0,0.00013273,2]
[403772533,1769532639255,-500.0,0.00013273,2]
[403772534,1769532639264,-205.09849573,0.00013273,2]
[403772535,1769532639275,-500.0,0.00013273,2]
[403772536,1769532639284,-261.99881114,0.00013273,2]
[403772537,1769532639293,-500.0,0.00013273,2]
[403772538,1769532639303,-500.0,0.00013273,2]
[403772539,1769532639312,-500.0,0.00013273,2]
[403772540,1769532639322,-500.0,0.00013273,2]
[403772541,1769532639331,-326.63861051,0.00013273,2]
[403772542,1769532639340,-500.0,0.00013273,2]
[403772543,1769532639350,-500.0,0.00013273,2]
[403772544,1769532639359,-500.0,0.00013273,2]
[403772545,1769532639368,-500.0,0.00013273,2]
[403772546,1769532639377,-500.0,0.00013273,2]
[403772547,1769532639386,-500.0,0.00013273,2]
[403772548,1769532639396,-648.71726301,0.00013273,2]
[403772549,1769532639405,-500.0,0.00013273,2]
[403772550,1769532639414,-500.0,0.00013273,2]
[403772551,1769532639423,-500.0,0.00013273,2]
[403772552,1769532639432,-500.0,0.00013273,2]
[403772553,1769532639441,-500.0,0.00013273,2]
[403772554,1769532639451,-500.0,0.00013273,2]
[403772555,1769532639460,-500.0,0.00013273,2]
[403772556,1769532639470,-500.0,0.00013273,2]
[403772557,1769532639479,-500.0,0.00013273,2]
[403772558,1769532639488,-500.0,0.00013273,2]
[403772559,1769532639498,-503.70808855,0.00013273,2]
[403772560,1769532639507,-151.0,0.000133,2]
[403772561,1769532639517,-151.0,0.000133,2]
[403772562,1769532639527,-500.0,0.00013391,2]
[403772563,1769532639538,-151.0,0.000134,2]
[403772564,1769532639548,-151.0,0.000134,2]
[403772565,1769532639559,-150.0,0.00013409,2]
[403772566,1769532639569,-150.0,0.00013409,2]
[403772567,1769532639581,-720.0,0.00013491,2]
[403772568,1769532639591,-151.0,0.000135,2]
[403772569,1769532639602,-500.0,0.00013528,2]
[403772570,1769532639611,-500.0,0.00013528,2]
[403772571,1769532639620,-150.0,0.00013546,2]
[403772572,1769532639632,-200.0,0.00013546,2]
[403772573,1769532639641,-635.38,0.00013599,2]
[403772574,1769532639651,-437.33885115,0.00013599,2]
[403772575,1769532639660,-151.0,0.000136,2]
[403772576,1769532639670,-734.39,0.00013611,2]
[403772577,1769532639679,-197.65,0.00013611,2]
[403772578,1769532639689,-197.65,0.00013611,2]
[403772579,1769532639698,-197.65,0.00013611,2]
[403772580,1769532639707,-197.65,0.00013611,2]
[403772581,1769532639717,-197.65,0.00013611,2]
[403772583,1769532639870,-197.65,0.00013611,2]
[403772584,1769532639882,-197.66,0.00013611,2]
[403772585,1769532639891,-500.0,0.00013665,2]
[403772586,1769532639904,-201.23226476,0.00013673,2]
[403772587,1769532639914,-300.0,0.00013673,2]
[403772588,1769532639923,-250.0,0.00013683,2]
[403772590,1769532639933,-694.17,0.00013698,2]
[403772591,1769532639942,-694.17,0.00013698,2]
[403772592,1769532639951,-694.17,0.00013698,2]
[403772593,1769532639960,-694.17,0.00013698,2]
[403772594,1769532639971,-694.17,0.00013698,2]
[403772595,1769532639980,-694.17,0.00013698,2]
[403772596,1769532639990,-694.17,0.00013698,2]
[403772597,1769532639999,-694.17,0.00013698,2]
[403772598,1769532640009,-694.17,0.00013698,2]
[403772599,1769532640018,-694.17,0.00013698,2]
[403772600,1769532640028,-694.17,0.00013698,2]
[403772602,1769532640037,-694.17,0.00013698,2]
[403772603,1769532640046,-694.17,0.00013698,2]
[403772605,1769532640057,-694.17,0.00013698,2]
[403772607,1769532640066,-694.17,0.00013698,2]
[403772608,1769532640075,-694.17,0.00013698,2]
[403772609,1769532640085,-694.17,0.00013698,2]
[403772611,1769532640093,-694.17,0.00013698,2]
[403772613,1769532640103,-694.17,0.00013698,2]
[403772614,1769532640117,-694.17,0.00013698,2]
[403772616,1769532640126,-694.17,0.00013698,2]
[403772617,1769532640136,-694.17,0.00013698,2]
[403772618,1769532640145,-694.17,0.00013698,2]
[403772619,1769532640155,-694.27671188,0.00013698,2]
[403772620,1769532640164,-500.0,0.00013698,2]
[403772621,1769532640173,-500.0,0.00013698,2]
[403772622,1769532640183,-186.52448351,0.00013698,2]
[403772623,1769532640192,-1000.0,0.00013698,2]
[403772624,1769532640201,-1000.0,0.00013698,2]
[403772625,1769532640211,-1000.0,0.00013698,2]
[403772626,1769532640220,-1000.0,0.00013698,2]
[403772627,1769532640230,-1000.0,0.00013698,2]
[403772628,1769532640239,-941.13251238,0.00013698,2]
[403772629,1769532640248,-813.08,0.00013698,2]
[403772630,1769532640258,-813.08,0.00013698,2]
[403772631,1769532640267,-813.08,0.00013698,2]
[403772632,1769532640276,-813.08,0.00013698,2]
[403772633,1769532640289,-813.08,0.00013698,2]
[403772634,1769532640298,-813.08,0.00013698,2]
[403772635,1769532640309,-813.08,0.00013698,2]
[403772636,1769532640319,-813.08,0.00013698,2]
[403772637,1769532640330,-813.08,0.00013698,2]
[403772638,1769532640340,-813.08,0.00013698,2]
[403772639,1769532640350,-813.08,0.00013698,2]
[403772640,1769532640359,-813.08,0.00013698,2]
[403772641,1769532640369,-813.08,0.00013698,2]
[403772642,1769532640378,-813.08,0.00013698,2]
[403772643,1769532640389,-813.08,0.00013698,2]
[403772644,1769532640399,-813.08,0.00013698,2]
[403772645,1769532640408,-813.08,0.00013698,2]
[403772646,1769532640418,-813.08,0.00013698,2]
[403772647,1769532640427,-813.08,0.00013698,2]
[403772648,1769532640436,-813.08,0.00013698,2]
[403772649,1769532640445,-813.08,0.00013698,2]
[403772650,1769532640455,-813.08,0.00013698,2]
[403772651,1769532640464,-813.08,0.00013698,2]
[403772652,1769532640474,-813.08418364,0.00013698,2]
[403772653,1769532640484,-507.56,0.00013698,2]
[403772654,1769532640495,-507.56,0.00013698,2]
[403772655,1769532640504,-507.56,0.00013698,2]
[403772656,1769532640514,-507.56,0.00013698,2]
[403772657,1769532640524,-507.56,0.00013698,2]
[403772658,1769532640534,-507.56,0.00013698,2]
[403772659,1769532640543,-507.56,0.00013698,2]
[403772660,1769532640555,-507.56,0.00013698,2]
[403772661,1769532640565,-507.56,0.00013698,2]
[403772662,1769532640574,-507.56,0.00013698,2]
[403772663,1769532640584,-507.56,0.00013698,2]
[403772664,1769532640593,-507.56,0.00013698,2]
[403772665,1769532640604,-507.56,0.00013698,2]
[403772666,1769532640613,-507.56,0.00013698,2]
[403772667,1769532640623,-507.56,0.00013698,2]
[403772668,1769532640637,-507.56,0.00013698,2]
[403772669,1769532640647,-507.56,0.00013698,2]
[403772670,1769532640656,-507.56,0.00013698,2]
[403772671,1769532640666,-507.56,0.00013698,2]
[403772672,1769532640675,-507.56,0.00013698,2]
[403772673,1769532640685,-507.56,0.00013698,2]
[403772674,1769532640695,-507.56,0.00013698,2]
[403772675,1769532640704,-507.56,0.00013698,2]
[403772676,1769532640714,-507.63,0.00013698,2]
[403772677,1769532640723,-500.0,0.00013698,2]
[403772678,1769532640732,-500.0,0.00013698,2]
[403772679,1769532640741,-500.0,0.00013698,2]
[403772680,1769532640751,-500.0,0.00013698,2]
[403772681,1769532640760,-527.43989334,0.00013698,2]
[403772682,1769532640769,-500.0,0.00013698,2]
[403772683,1769532640779,-500.0,0.00013698,2]
[403772684,1769532640788,-500.0,0.00013698,2]
[403772685,1769532640798,-500.0,0.00013698,2]